Cogmind - Beta 13 @@@ ROGUE MODE // 2024.03.27 @ 09:24:11 Player: BoomBlip Result: Destroyed by as-58529 with Assembled Maul Performance ------------- Evolutions (0) 0 Regions Visited (4) 800 Robots Destroyed (9) 45 Value Destroyed (236) 236 Prototype IDs (0) 0 Alien Tech Used (0) 0 Bonus (0) 0 TOTAL SCORE: 1081 Bonus ------- None Cogmind --------- Core Integrity 0/250 Matter 167/300 Energy 99/100 System Corruption 17% Temperature Cool (0) Movement Core (50) Location -9/Mines Parts ------- > --- POWER (1) -------- (None) > --- PROPULSION (2) --- (None) > --- UTILITY (2) ------ (None) > --- WEAPON (2) ------- (None) > --- INVENTORY (5) ---- Ion Engine Light Treads Light Treads Medium Storage Unit Peak State ------------ > --- POWER ------------ Ion Engine > --- PROPULSION ------- Aluminum Leg Aluminum Leg > --- UTILITY ---------- Improved Heat Sink Medium Storage Unit > --- WEAPON ----------- Light Assault Rifle Light Assault Rifle > --- INVENTORY -------- Ion Engine Light Ion Engine Light Treads Light Treads Aluminum Leg Wheel Compact Wheel Small Laser Grenade Launcher Hammer [Rating: 10] Favorites ----------- Power Ion Engine Engine Ion Engine Propulsion Aluminum Leg Treads Light Treads Leg Aluminum Leg Wheel Wheel Utility Small Storage Unit Device Improved Heat Sink Storage Small Storage Unit Weapon Light Assault Rifle Energy Gun Small Laser Ballistic Gun Light Assault Rifle Launcher Grenade Launcher Impact Weapon Hammer Build | -11 -10 -10 -10 -9 ------- Run | Yrd Mat Min Exi Min Slots Evolved . | . . . . . Power . | . . . . . Propulsion . | . . . . . Utility . | . . . . . Weapon . | . . . . . Parts Attached 20 | . . 1 1 18 Power 3 | . . . . 3 Engine 3 | . . . . 3 Core . | . . . . . Reactor . | . . . . . Propulsion 6 | . . . . 6 Treads 2 | . . . . 2 Leg 2 | . . . . 2 Wheel 2 | . . . . 2 Hover . | . . . . . Flight . | . . . . . Utility 2 | . . . 1 1 Device 1 | . . . . 1 Storage 1 | . . . 1 . Processor . | . . . . . Hackware . | . . . . . Protection . | . . . . . Artifact . | . . . . . Weapon 9 | . . 1 . 8 Energy Gun 1 | . . . . 1 Energy Cannon . | . . . . . Ballistic Gun 3 | . . . . 3 Ballistic Cannon . | . . . . . Launcher 3 | . . . . 3 Special Weapon . | . . . . . Impact Weapon 2 | . . 1 . 1 Slashing Weapon . | . . . . . Piercing Weapon . | . . . . . Special Melee Weapon . | . . . . . Unidentified Prototypes . | . . . . . Parts Lost 9 | . . . . 9 Power 2 | . . . . 2 Propulsion 2 | . . . . 2 Utility 1 | . . . . 1 Weapon 4 | . . . . 4 Highest Loss Streak 5 | . . . . 5 To Critical Strikes . | . . . . . Average Slot Usage (%) 86 | . 85 85 85 87 Engine 13 | . 14 14 14 13 Treads 1 | . . . . 3 Leg 24 | . 28 28 28 19 Device 3 | . . . . 9 Storage 13 | . 14 14 14 13 Energy Gun 4 | . 14 5 . 2 Ballistic Gun 15 | . 14 14 14 18 Impact Weapon 6 | . . 8 14 3 Naked Turns 11 | . . . . 11 Heaviest Build 20 | 12 12 13 18 20 Greatest Support 40 | 20 20 20 20 40 Greatest Overweight (x) 1 | . . . . 1 Average Overweight (x) . | . . . . . Largest Inventory Capacity 10 | 8 8 8 10 10 Average Capacity 8 | 8 8 8 8 9 Most Carried 10 | 6 8 8 8 10 Average Carried 7 | 6 7 8 8 7 Final Capacity 10 | 8 8 8 10 5 Final Carried 8 | 6 8 8 8 4 Class Distribution -------------------- 100% | Mutant Dominant Class ---------------- Mutant | -10/Materials Mutant | -10/Mines Mutant | -10/Exiles Mutant | -9/Mines Resources | -11 -10 -10 -10 -9 ----------- Run | Yrd Mat Min Exi Min Matter Collected 354 | 200 6 8 . 140 Remotely . | . . . . . Salvage Created 265 | . 83 8 . 174 Parts 15 | . 5 . . 10 Haulers Intercepted . | . . . . . Recyclers Shooed . | . . . . . Parts Field Recycled . | . . . . . Retrieved Matter . | . . . . . Parts Self-Destructed . | . . . . . Prevented . | . . . . . Kills | -11 -10 -10 -10 -9 ------- Run | Yrd Mat Min Exi Min Combat Hostiles Destroyed 17 | . 2 1 . 14 Melee 2 | . . 1 . 1 Guns 5 | . 2 . . 3 AOE 9 | . . . . 9 Classes Destroyed 3 | . 1 1 . 1 Swarmer 4 | . . . . 4 Grunt 5 | . 2 . . 3 Assembled 8 | . . 1 . 7 Best Kill Streak 4 | . 1 1 . 4 Combat Bots Only 4 | . 1 1 . 4 Max Kills in Single Turn 3 | . 1 1 . 3 Gunslinging . | . . . . . Exploded 3 | . . . . 3 Melee 1 | . . 1 . 1 Uniques/NPCs Destroyed . | . . . . . Combat | -11 -10 -10 -10 -9 -------- Run | Yrd Mat Min Exi Min Hostile Shots Fired 73 | . 7 4 . 62 Missed 22 | . 3 1 . 18 Damage Taken 1094 | . 58 33 . 1003 Core 265 | . 12 . . 253 Absorbed by Shields . | . . . . . Core Remaining (%) 100 | 100 . . . . Volleys Fired 35 | . 6 . . 29 Largest 2 | . 2 . . 2 Hottest 60 | . 60 . . 60 Shots Fired 65 | . 12 . . 53 Gun 57 | . 12 . . 45 Cannon . | . . . . . Launcher 8 | . . . . 8 Special . | . . . . . Kinetic 47 | . 6 . . 41 Thermal 10 | . 6 . . 4 Explosive 8 | . . . . 8 Electromagnetic . | . . . . . Robot Hit Streak 10 | . 9 . . 10 Robot Miss Streak 2 | . 1 . . 2 Penetration Max . | . . . . . Secondary Targets . | . . . . . Shots Hit Robots 51 | . 11 3 . 37 Core Hits 26 | . 6 . . 20 Critical Kills . | . . . . . Critical Parts Destroyed 3 | . . 1 . 2 Critical Strikes 3 | . . 1 . 2 Smash 3 | . . 1 . 2 Melee Attacks 21 | . . 10 . 11 Impact 21 | . . 10 . 11 Slashing . | . . . . . Piercing . | . . . . . Sneak Attacks . | . . . . . Combat Hostiles . | . . . . . Follow-up Attacks . | . . . . . Damage Inflicted 1138 | . 100 94 . 944 Guns 319 | . 100 . . 219 Cannons . | . . . . . Explosions 598 | . . . . 598 Melee 206 | . . 82 . 124 Ramming 15 | . . 12 . 3 Kinetic 232 | . 46 . . 186 Thermal 87 | . 54 . . 33 Explosive 598 | . . . . 598 Electromagnetic . | . . . . . Impact 206 | . . 82 . 124 Slashing . | . . . . . Piercing . | . . . . . Highest Corruption 17 | . . . . 17 Average Corruption 14 | . . . . 14 Corruption Purged . | . . . . . Corruption Blocked . | . . . . . Effects 3 | . . . . 3 Matter Fused 1 | . . . . 1 Energy Discharges 1 | . . . . 1 Data Loss (minor) 1 | . . . . 1 Overload Shots . | . . . . . Overflow Damage 134 | . . 41 . 93 Projectiles . | . . . . . Explosions 45 | . . . . 45 Melee 89 | . . 41 . 48 Knockbacks . | . . . . . Impact . | . . . . . Kinetic . | . . . . . Secondary . | . . . . . Self-Inflicted Damage 66 | . . . . 66 Shots 4 | . . . . 4 Rammed 1 | . . . . 1 Targets Rammed 2 | . . 1 . 1 Kicked 1 | . . 1 . . Crushed . | . . . . . Highest Temperature 52 | . 52 2 . 20 Average Temperature 20 | . 28 2 . 9 Received Heat Transfer 144 | . 30 60 . 54 Siege Activations . | . . . . . Robots Corrupted . | . . . . . Combat Hostiles . | . . . . . Parts Fried . | . . . . . Impact Corruptions 4 | . . 1 . 3 Robots Melted . | . . . . . Combat Hostiles . | . . . . . Parts Melted . | . . . . . Heat Transferred 200 | . 125 . . 75 Parts Sabotaged . | . . . . . Parts Stolen . | . . . . . Parts Stripped . | . . . . . Power Chain Reactions . | . . . . . Alert | -11 -10 -10 -10 -9 ------- Run | Yrd Mat Min Exi Min Peak Influence 231 | . 50 19 . 231 Initial 19 | . . 19 . . Average 86 | . 21 19 . 160 Maximum Alert Level 1 | . . . . 1 Low Security (%) 79 | 100 100 100 . 56 Level 1 20 | . . . . 43 Level 2 . | . . . . . Level 3 . | . . . . . Level 4 . | . . . . . Level 5 . | . . . . . High Security . | . . . . . Max Security . | . . . . . Squads Dispatched 2 | . 2 . . . Investigation 1 | . 1 . . . Extermination . | . . . . . Reinforcement 1 | . 1 . . . Assault . | . . . . . Garrison . | . . . . . Intercept . | . . . . . Searches Triggered . | . . . . . Construction Impeded . | . . . . . Haulers Reinforced . | . . . . . Active Scanning Responses . | . . . . . Cargo Convoy Interrupts . | . . . . . Stealth | -11 -10 -10 -10 -9 --------- Run | Yrd Mat Min Exi Min Distress Signals . | . . . . . Communications Jammed . | . . . . . Distress Signals . | . . . . . Times Spotted 25 | . 3 1 . 21 Peak Tracking Total 6 | . 2 1 . 6 Tactical Retreats 2 | . . . . 2 Traps | -11 -10 -10 -10 -9 ------- Run | Yrd Mat Min Exi Min Traps Triggered 1 | . 1 . . . Indirectly . | . . . . . Trap Hack Attempts . | . . . . . Triggered . | . . . . . Disarmed . | . . . . . Reprogrammed . | . . . . . Reused . | . . . . . Traps Extracted . | . . . . . Installed . | . . . . . Triggered . | . . . . . Machines | -11 -10 -10 -10 -9 ---------- Run | Yrd Mat Min Exi Min Machines Disabled . | . . . . . Max in Single Turn . | . . . . . Machines Repaired . | . . . . . Machines Dismantled . | . . . . . Machines Sabotaged . | . . . . . Overloaded Fab Kills . | . . . . . Hacking | -11 -10 -10 -10 -9 --------- Run | Yrd Mat Min Exi Min Machines Accessed 1 | . . . 1 . Terminals . | . . . . . Fabricators . | . . . . . Repair Stations . | . . . . . Recycling Units . | . . . . . Scanalyzers . | . . . . . Garrison Access . | . . . . . Total Hacks 23 | . . . 23 . Successful 23 | . . . 23 . Failed . | . . . . . Catastrophic . | . . . . . Database Lockouts . | . . . . . Manual . | . . . . . Terminals . | . . . . . Fabricators . | . . . . . Repair Stations . | . . . . . Recycling Units . | . . . . . Scanalyzers . | . . . . . Garrison Access . | . . . . . Terminal Hacks 23 | . . . 23 . Record 23 | . . . 23 . Fabricator Hacks . | . . . . . Repair Station Hacks . | . . . . . Recycling Unit Hacks . | . . . . . Scanalyzer . | . . . . . Garrison Access Hacks . | . . . . . Unauthorized Hacks . | . . . . . Terminals . | . . . . . Fabricators . | . . . . . Repair Stations . | . . . . . Recycling Units . | . . . . . Scanalyzers . | . . . . . Garrison Access . | . . . . . Data Cores Recovered . | . . . . . Used . | . . . . . Hacking Detections . | . . . . . Full Trace Events . | . . . . . Feedback Events . | . . . . . Feedback Blocked . | . . . . . Robot Schematics Acquired . | . . . . . Robots Built . | . . . . . Authchips . | . . . . . Time . | . . . . . Total Robot Build Rating . | . . . . . Part Schematics Acquired . | . . . . . Parts Built . | . . . . . Authchips . | . . . . . Time . | . . . . . Total Part Build Rating . | . . . . . Parts Repaired . | . . . . . Time . | . . . . . Parts Recycled . | . . . . . Recycled Matter . | . . . . . Retrieved Matter . | . . . . . Retrieved Components . | . . . . . Parts Scanalyzed . | . . . . . Part Schematics Acquired . | . . . . . Parts Damaged . | . . . . . Bothacking | -11 -10 -10 -10 -9 ------------ Run | Yrd Mat Min Exi Min Used RIF Installer . | . . . . . Robots Hacked . | . . . . . Non-combat . | . . . . . Combat . | . . . . . Robot Hacks Applied . | . . . . . Relay Couplers Released . | . . . . . Fabnet Peak Effective % . | . . . . . Robots Rewired . | . . . . . Allies Hacked . | . . . . . Hacks Repelled . | . . . . . Allies | -11 -10 -10 -10 -9 -------- Run | Yrd Mat Min Exi Min Total Allies . | . . . . . Largest Group . | . . . . . Highest-Rated Group . | . . . . . Highest-Rated Ally . | . . . . . Total Orders . | . . . . . Ally Attacks . | . . . . . Total Damage . | . . . . . Kills . | . . . . . Allies Corrupted . | . . . . . Allies Melted . | . . . . . Intel | -11 -10 -10 -10 -9 ------- Run | Yrd Mat Min Exi Min Robot Analysis Total . | . . . . . Derelict Logs Recovered 1 | . . 1 . . Drone Launches . | . . . . . Drone Recoveries . | . . . . . Exploration | -11 -10 -10 -10 -9 ------------- Run | Yrd Mat Min Exi Min Turns Passed 1146 | 8 162 328 194 454 Spaces Moved 769 | 7 105 249 161 247 Core 19 | . . . . 19 Treads 35 | . . . . 35 Legs 714 | 7 105 249 161 192 Wheels 1 | . . . . 1 Hover . | . . . . . Flight . | . . . . . Fastest Speed 50 | 120 120 120 120 50 Average Speed 123 | 120 120 120 120 129 Slowest Speed 190 | 120 120 120 120 190 Overloaded Moves . | . . . . . Propulsion Burnouts . | . . . . . Robots Hopped . | . . . . . Cave-ins Triggered . | . . . . . Exploration Rate (%) 34 | 2 19 41 51 60 Regions Visited 4 Branch Regions 3 Pre-discovered Areas 2 | . . 1 1 . Known Exits Taken . | . . . . . Unknown Exits Taken 4 | 1 1 1 1 . Scrap Searched . | . . . . . Spaces Dug . | . . . . . Terrain Destroyed 80 | . . . . 80 Melee . | . . . . . Projectile . | . . . . . AOE 80 | . . . . 80 Terrain Rammed . | . . . . . Walls Destroyed . | . . . . . Machines Disabled . | . . . . . Actions | -11 -10 -10 -10 -9 --------- Run | Yrd Mat Min Exi Min Total 875 | 6 130 260 162 317 Wait 18 | . 18 . . . Move 765 | 6 104 248 160 247 Hop . | . . . . . Pick Up 3 | . 2 . . 1 Fast Attach 2 | . . . 1 1 Attach 9 | . . . . 9 Detach 4 | . . . . 4 Swap 9 | . . 1 . 8 Drop 7 | . . . 1 6 Fire 35 | . 6 . . 29 Melee 21 | . . 10 . 11 Ram 1 | . . . . 1 Kick 1 | . . 1 . . Crush . | . . . . . Escape Stasis . | . . . . . Rewire . | . . . . . Trap . | . . . . . Miscellaneous . | . . . . . Route ------- -11/Scrapyard -10/Materials -10/Mines -10/Exiles (discovered 2 exits: [*Min x2]) -9/Mines History --------- Turn | Location | Event 1 | -11/Scrapyard | Discovered new exit (range 3) 9 | -11/Scrapyard | Entered Materials 153 | -10/Materials | Discovered new exit (range 16) 171 | -10/Materials | Entered Mines 305 | -10/Mines | Build established: Mutant 306 | -10/Mines | Excavation squad dispatched 306 | -10/Mines | A large section of the Mines collapsed 346 | -10/Mines | Learned location of Zion (-7) 493 | -10/Mines | Deemed a non-threat by the Exiles lab entrance 494 | -10/Mines | Discovered new exit (range 5) 499 | -10/Mines | Entered Exiles 517 | -10/Exiles | Discovered new exit (range 15) 532 | -10/Exiles | Met 8R-AWN 552 | -10/Exiles | Met EX-HEX 599 | -10/Exiles | Met EX-DEC 680 | -10/Exiles | Discovered new exit (range 14) 693 | -10/Exiles | Entered Mines 797 | -9/Mines | Assembled infested the area 802 | -9/Mines | Assisted by a Guerilla fighting off Assembled 994 | -9/Mines | Lost 3 parts (1p1n1w) 1040 | -9/Mines | Core integrity fell below 50% 1062 | -9/Mines | System corruption reached 10% 1071 | -9/Mines | Core integrity fell below 20% 1095 | -9/Mines | Lost 5 parts (1p1n1u2w) 1147 | -9/Mines | Destroyed by as-58529 with Assembled Maul Last Messages --------------- 01060_ as-57441 suffers critical hit (Smash). 01060_ Destroyed Asb. Hover Unit. 01060_ as-57441 system corrupted by crushing effect. 01061_ Hammer destroyed. 01061_ System corrupted by crushing effect (+5). 01064_ Lgt. Assault Rifle destroyed. 01064_ Com. Wheel destroyed. 01064_ System corrupted by crushing effect (+3). 01064_ System corrupted by crushing effect (+4). 01071_ as-57441 destroyed. 01073_ Acquired 12 matter. 01075_ Dropped Wheel. 01079_ Acquired Wheel. 01087_ System corrupted: Matter fused (-8). 01103_ System corrupted: Component data lost. 01125_ System corrupted: Energy discharge (-57). 01134_ Dropped Aluminum Leg. 01135_ Dropped Wheel. 01136_ Dropped Sml. Laser. 01137_ Slammed into as-43924. Map ----- +----------------------------------------------------+ | ???????????????????????????????????????? | | ???????????????????????????????????????? | | ???????????????????????????????????????? | | ???????????????????????????????????????? | | ???????????????????????????????????????? | | ???????????????????????????????????????? | | ???????????????????????????????????????? | | ???????????????????????????????????????? | | ???????????????????????????????????????? | | ???????????????????????????????????????? | | ???????????????????????????????????????? | | ???????????????????????????????????????? | | ?#?????????????????????????????????????? | | ? ?????????????????????????????????????? | | ????????????????? ???????????????????? | | ????????????????? ???????????????????? | | ????????????????? ???????????????????? | | #????????????????# ???????????????????? | | #????????????????# ???????????????????? | | #????????????????# ???????????????????? | | #????????????????# #??####????????????? | | #????????????????# #?## ##???????????? | | #????????????????# ### ######??????? | | ##????????????????# ## #??????? | | #?????????????????# ## #??????? | | #?????????????????# ## @a### #??????? | | #?????????????##### ### a ##?# #??????? | | #????????????## %%# ;; ;??# #??????? | | #??######????# %#[!%;; #??# ###????? | | #?## ###### !%%!%%% #### ####???? | | #?# !=%* ! ; "#???? | | #?# ###### ######### ##???? | | #?## #???# %######???# % ##???? | | #??## #??# ???????# ##???? | | #??## ##?# ?????# ##???? | | #?## #?# #????# ##???? | | ### #?## #????##### ##????? | | ## ##??## ##????????# #?????? | | """ ##????#### #??????#### #?????? | | """%##????????# #??????# [== #?????? | | """ #?????????# ##?????# ## #?????? | | % #?????????# ???? ??# #?????? | | ##### #?????????# #??##???# #?????? | | ????# #?????????# ##??????# #####?? | | ????# #?????????# ##????## ##? | | ?#### #######???# #????# #? | | ?# #????# ##??## #? | | ?# ##### #?????# #### #? | | ?# ####???# #??????# ##? | | ## #??????# ##????## #?? | +----------------------------------------------------+ Best States ------------- Heat Dissipation 39 Energy Generation 10 Energy Capacity 250 Matter Stores 300 Matter Capacity 300 Sight Range 16 Terrain Scan Density 10 Evasion (%) 55 Recoil Reduction 2 Item Schematics ----------------- None Robot Schematics ------------------ None Fabricated ------------ Nothing Alien Tech Used ----------------- None Achievements -------------- None Challenges ------------ None Game ------ Seed LinearHoverConstruct Manual? 0 Play Time 00:14:20 Cumulative 85.2 hours Start 2024.03.27 @ 09:13:49 End 2024.03.27 @ 09:24:11 Sessions 1 Manual Loads 0 Difficulty Rogue Special Mode None Game No. 131 Rogue 119 Adventurer 10 Explorer 2 Win Type - Total 0 Types 0/0/0/0/0/0/0/0/0 Lore% 23 Gallery% 51 Achievement% 37 Wizard Run 0 Options --------- Layout 0 ASCII 0 Keyboard 0 Movement Arrows Keybinds 0 Fullscreen 1 Font 36/Smallcaps Map View 76x50 Zoom Use 0% Tactical HUD 1 Map Filters NONE Filters NONE Steam 1 RUN: f26b4806-e7be-4bb5-91a0-f9837a77d00b